bitfinex-derivatives/quotes_ETHF0:USTF0_20250928
["timestamp","ask_amount","ask_price","bid_price","bid_amount"]
[1759064865308,3.2078,3983.9,3983.8,0.45161]
[1759064865504,3.28624282,3983.9,3983.8,1.19131]
[1759064866410,3.82054282,3983.9,3983.8,1.19131]
[1759064866612,4.03834282,3983.9,3983.8,1.44531]
[1759064872120,3.82054282,3983.9,3983.8,1.44531]
[1759064872717,0.61274282,3983.9,3983.8,1.44531]
[1759064873117,0.07844282,3983.9,3983.8,6.44531]
[1759064873912,0.5228,3984.5,3984.4,0.87585]
[1759064874104,0.60122973,3984.5,3984.4,1.46925]
[1759064875513,0.81722973,3984.5,3984.4,1.46925]
[1759064880020,0.95212973,3984.5,3984.4,1.46925]
[1759064881626,0.95212973,3984.5,3984.4,0.70555]
[1759064881828,1.49658779,3984.5,3984.4,0.254]
[1759064882020,1.94811779,3984.5,3984.4,0.254]
[1759064882418,0.769,3983.8,3983.7,0.87592]
[1759064882622,0.84742973,3983.8,3983.7,1.12992]
[1759064882927,0.8474389,3983.8,3983.7,1.46932]
[1759064884626,0.8474389,3983.8,3983.7,1.0177]
[1759064884820,0.8474389,3983.8,3983.7,0.254]
[1759064885021,0.8474389,3983.8,3983.7,0.70562]
[1759064885532,0.8474446,3983.8,3983.7,0.70562]
[1759064885737,0.8474446,3983.8,3983.7,0.91292]
[1759064886133,0.8474446,3983.8,3983.7,1.25232]
[1759064886333,0.8474446,3983.8,3983.7,1.46932]
[1759064889230,0.6314446,3983.8,3983.7,1.46932]
[1759064889436,0.0784446,3983.8,3983.7,1.46932]
[1759064892244,0.0784446,3983.8,3983.7,6.46932]
[1759064892534,0.0784446,3983.8,3983.7,9.67712]
[1759064896842,0.0784446,3983.8,3983.7,9.42312]
[1759064897027,0.0784446,3983.8,3983.7,9.67712]
[1759064899029,0.5528,3984.4,3984.3,0.88046]
[1759064899236,0.63123143,3984.4,3984.3,1.46626]
[1759064899635,0.07843143,3984.4,3984.3,1.46626]
[1759064905135,0.00218537,3984.9,3984.8,0.8739]
[1759064905443,0.08060736,3984.9,3984.8,1.4701]
[1759064907135,0.39260736,3984.9,3984.8,1.4701]
[1759064907639,0.61800736,3984.9,3984.8,1.4701]
[1759064908642,0.84270736,3984.9,3984.8,1.0186]
[1759064908839,0.84270736,3984.9,3984.8,1.4701]
[1759064909634,5.08060736,3984.9,3984.6,0.45152]
[1759064909835,5.08060736,3984.9,3984.2,0.3422]
[1759064909836,0.5818,3984.5,3984.4,0.45155]
[1759064910039,0.5818,3984.5,3984.4,0.70555]
[1759064910040,0.97222199,3984.5,3984.4,0.70555]
[1759064910341,0.97222199,3984.5,3984.4,1.26405]
[1759064911144,0.97222199,3984.5,3984.4,0.70555]
[1759064911842,0.97222199,3984.5,3984.4,0.92185]
[1759064912344,0.97222199,3984.5,3984.4,1.26405]
[1759064913146,0.84052199,3984.5,3984.4,1.47015]
[1759064913347,0.61582199,3984.5,3984.4,1.47015]
[1759064914642,0.30382199,3984.5,3984.4,1.47015]
[1759064914946,0.84052199,3984.5,3984.4,1.47015]
[1759064915947,0.30382199,3984.5,3984.4,1.47015]
[1759064916140,0.07842199,3984.5,3984.4,1.47015]
[1759064916345,0.5374,3984.7,3984.6,0.7646]
[1759064916537,0.39042439,3984.7,3984.6,1.21612]
[1759064916742,0.07842439,3984.7,3984.6,1.21612]
[1759064918542,0.312,3984.6,3984.5,0.5585]
[1759064918737,0.84052439,3984.6,3984.5,1.21613]
[1759064921848,0.07842439,3984.6,3984.5,1.34663]
[1759064925471,0.07842439,3984.6,3984.5,4.55443]
[1759064925774,1e-08,3984.9,3984.8,1.2161]
[1759064926069,1e-08,3984.9,3984.8,1.4701]
[1759064934475,1e-08,3984.9,3984.8,1.264]
[1759064934682,0.55110001,3984.9,3984.8,1.4878]
[1759064936788,1e-08,3984.9,3984.8,1.4878]
[1759064936975,1e-08,3984.9,3984.8,0.8916]
[1759064937175,1e-08,3984.9,3984.8,1.1456]
[1759064938179,0.07841526,3984.9,3984.8,1.4868]
[1759064942585,1e-08,3984.9,3984.8,1.1456]
[1759064945481,1e-08,3984.9,3984.8,2.94890108]
[1759064950794,1e-08,3984.9,3984.8,1.1456]
[1759064953297,1e-08,3984.9,3984.8,3.35725875]
[1759064957703,0.0008,3985.7,3985.6,0.87471]
[1759064957893,0.0008,3985.7,3985.6,4.67121]
[1759064958594,0.00398336,3985.7,3985.6,4.67121]
[1759064959598,0.00398336,3985.7,3985.6,4.87430611]
[1759064960803,0.20169489,3987.7,3985.6,4.87430611]
[1759064960804,4.33593,3987.1,3986.3,0.3347]
[1759064961004,0.4513,3986.7,3986.6,0.3347]
[1759064961205,0.52969105,3986.7,3986.6,0.5497]
[1759064961406,1.07133993,3986.7,3986.6,0.5497]
[1759064961698,1.07387865,3986.7,3986.6,0.55200995]
[1759064962802,0.53222977,3986.7,3986.6,0.55200995]
[1759064963904,0.53222977,3986.7,3986.6,1.00330995]
[1759064964106,9.27851594,3986.7,3986.6,0.25530995]
[1759064966007,9.27851594,3986.7,3986.6,0.00230995]
[1759064966208,9.27851594,3986.7,3986.6,0.25530995]
[1759064966607,9.27851594,3986.7,3986.6,1e-08]
[1759064966907,9.27851594,3986.7,3986.2,0.3424]
[1759064966908,0.45133,3986.3,3986.2,0.79374]
[1759064967210,0.52972105,3986.3,3986.2,1.04674]
[1759064967410,5.52972105,3986.3,3986.2,1.04674]
[1759064967812,5.52972105,3986.3,3986.2,1.04884282]
[1759064968704,5.52972105,3986.3,3986.2,0.59750282]
[1759064971411,6.06795367,3986.3,3986.2,0.59750282]
[1759064972409,6.06795367,3986.3,3986.2,1.04884282]
[1759064974210,5.61662367,3986.3,3986.2,1.25624282]
[1759064974909,5.61662367,3986.3,3986.2,0.80490282]
[1759064975421,5.61663083,3986.3,3986.2,0.80490282]
[1759064975608,6.06796083,3986.3,3986.2,0.80490282]
[1759064979517,1.06796083,3986.3,3986.2,0.80490282]
[1759064981515,1.06796083,3986.3,3986.2,1.25624282]
[1759064981716,0.61663083,3986.3,3986.2,1.25624282]
[1759064982524,1.06796083,3986.3,3986.2,1.25624282]
[1759064983021,0.61663083,3986.3,3986.2,1.47854282]
[1759064983413,0.61663083,3986.3,3986.2,0.80490282]
[1759064983620,1.06796083,3986.3,3986.2,0.59750282]
[1759064983914,1.06796083,3986.3,3986.2,1.04884282]
[1759064984724,0.61663083,3986.3,3986.2,1.04884282]
[1759064985221,0.61663083,3986.3,3986.2,1.25624282]
[1759064988227,0.61663115,3986.3,3986.2,1.25624282]
[1759064989929,0.61663115,3986.3,3986.2,1.47854282]
[1759065021856,0.07839853,3986.3,3986.2,4.68634282]
[1759065022154,0.00253872,3986.7,3986.6,1.208]
[1759065022345,0.00253872,3986.7,3986.6,1.461]
[1759065022548,0.54135251,3986.7,3986.6,1.461]
[1759065023348,0.00253872,3986.7,3986.6,1.461]
[1759065032253,0.00253872,3986.7,3986.6,1.208]
[1759065032448,0.00253872,3986.7,3986.6,1.461]
[1759065033056,0.00253872,3986.7,3986.6,1.208]
[1759065033257,0.00253872,3986.7,3986.6,1.461]
[1759065038558,3.2078,3987.1,3987.0,0.45125]
[1759065038758,3.74531375,3987.1,3987.0,1.59025]
[1759065039157,3.2078,3987.6,3987.4,0.4512]
[1759065039362,3.2078,3987.6,3987.5,1.139]
[1759065039662,3.74800776,3987.6,3987.5,1.5902]
[1759065039863,3.2078,3988.8,3988.1,0.2129]
[1759065040164,3.6589,3988.4,3988.3,0.3201]
[1759065040659,8.6589,3988.4,3988.3,0.3201]
[1759065040861,8.66099356,3988.4,3988.3,0.3201]
[1759065041860,3.66099356,3988.4,3988.3,0.3201]
[1759065042470,3.66099356,3988.4,3988.3,0.533]
[1759065044373,0.4511,3988.3,3988.2,0.253]
[1759065044569,0.45118,3987.6,3987.5,0.3429]
[1759065044772,0.45118,3987.6,3987.5,0.5959]
[1759065044972,0.45117,3987.7,3987.5,1.0471]
[1759065045163,0.45117,3987.7,3987.6,0.66408]
[1759065045363,0.45117,3987.7,3987.6,0.533]
[1759065045559,0.45117,3987.7,3987.6,0.3201]
[1759065046065,5.45117,3987.7,3987.6,0.3201]
[1759065046468,0.45121,3987.4,3987.3,0.3201]
[1759065046771,0.45122,3987.3,3987.2,0.5731]
[1759065046967,0.45124,3987.1,3987.0,3.3378]
[1759065047164,0.45124,3987.1,3987.0,0.4501]
[1759065047365,5.52963284,3987.1,3987.0,0.4501]
[1759065047961,5.52963284,3987.1,3987.0,0.3201]
[1759065048270,5.52963284,3987.1,3987.0,0.4501]
[1759065049266,0.07839284,3987.1,3987.0,1.11425]
[1759065049467,0.45124,3987.1,3987.0,1.33725]
[1759065051268,0.45124,3987.1,3987.0,0.886]
[1759065051976,0.9856673,3987.1,3987.0,0.886]
[1759065053173,0.9856673,3987.1,3987.0,1.33725]
[1759065054674,0.9856673,3987.1,3987.0,0.886]
[1759065055281,0.9856673,3987.1,3987.0,1.33725]
[1759065055577,0.5344273,3987.1,3987.0,1.33725]
[1759065055769,0.9856673,3987.1,3987.0,1.33725]
[1759065058682,0.9856673,3987.1,3987.0,1.59025]
[1759065059882,0.9856673,3987.1,3987.0,1.33725]
[1759065060082,0.9856673,3987.1,3987.0,1.59025]
[1759065061384,0.9856673,3987.1,3987.0,1.139]
[1759065063194,0.9856673,3987.1,3987.0,1.59025]
[1759065063890,0.5344273,3987.1,3987.0,1.59025]
[1759065064791,0.4512,3987.5,3987.4,0.4342]
[1759065064986,0.98411499,3987.5,3987.4,0.7443]
[1759065065792,0.53291499,3987.5,3987.4,1.19551]
[1759065066485,3.2078,3987.6,3987.5,0.8864]
[1759065066691,0.98411062,3987.6,3987.5,1.5736]
[1759065066886,0.53293062,3987.6,3987.5,1.5736]
[1759065067886,0.45117,3987.7,3987.6,0.45118]
[1759065068093,0.9840093,3987.7,3987.6,1.19548]
[1759065068597,0.5328393,3987.7,3987.6,1.19548]
[1759065068795,0.45116,3987.8,3987.6,0.88538]
[1759065068999,0.45116,3987.8,3987.7,0.7443]
[1759065069493,0.9840266,3987.8,3987.7,0.7443]
[1759065077901,0.9840266,3987.8,3987.7,1.19547]
[1759065078404,0.45116,3987.8,3987.7,1.19547]
[1759065078800,3.20989356,3988.4,3988.3,0.5199]
[1759065079104,4.19433785,3988.4,3988.3,0.5199]
[1759065079294,0.45113,3988.1,3988.0,0.6995]
[1759065079489,0.98448429,3988.1,3988.0,0.6995]
[1759065079699,0.98448429,3988.1,3988.0,0.9073]
[1759065079904,0.98448429,3988.1,3988.0,1.1351]
[1759065083314,0.98448429,3988.1,3988.0,0.8821]
[1759065083806,0.98448429,3988.1,3988.0,1.1351]
[1759065086704,0.98448429,3988.1,3988.0,0.8821]
[1759065100016,0.98448429,3988.1,3988.0,1.33323]
[1759065100814,0.98448429,3988.1,3988.0,0.8821]
[1759065101304,0.98448429,3988.1,3988.0,1.33324]
[1759065101810,0.98448429,3988.1,3988.0,0.8821]
[1759065102213,0.98448429,3988.1,3988.0,1.33324]
[1759065103016,0.98448429,3988.1,3988.0,0.4465]
[1759065103326,0.98448429,3988.1,3988.0,1.1403]
[1759065106926,1.12765,3988.8,3988.0,1.1403]
[1759065106927,3.91696507,3990.8,3990.7,0.45083]
[1759065107222,0.6735,3992.0,3991.9,0.45069]
[1759065107418,0.5593,3992.5,3992.4,0.45064]
[1759065107621,9.1093,3992.5,3992.4,1.42492749]
[1759065107924,0.5614793,3992.5,3992.4,6.61446831]
[1759065108218,0.1343793,3992.5,3992.4,4.96598775]
[1759065108422,0.4491,3992.9,3992.6,0.45061]
[1759065108623,0.4491,3992.9,3992.8,3.65839]
[1759065108926,0.4491,3992.9,3992.8,4.25198165]
[1759065109124,0.4491,3992.9,3992.8,4.70257165]
[1759065109317,0.78686348,3992.9,3992.8,5.59414426]
[1759065110311,6.7392966,3992.9,3992.8,1.97471472]
[1759065110518,6.7392966,3992.9,3992.8,0.71328749]
[1759065110723,14.9470966,3992.9,3992.8,0.02688749]
[1759065110926,0.894,3992.5,3992.4,0.0023661]
[1759065111121,6.84643312,3992.5,3992.4,1.9638645]
[1759065111418,0.894,3992.0,3991.9,3.2078]
[1759065111620,6.84643312,3992.0,3991.9,3.4718]
[1759065112523,6.84643312,3992.0,3991.9,3.47474936]
[1759065115022,6.84643312,3992.0,3991.9,3.21074936]
[1759065115223,6.84643312,3992.0,3991.9,3.47474936]
[1759065116820,0.894,3992.0,3991.9,3.47474936]
[1759065117021,0.894,3992.0,3991.9,9.14228243]
[1759065117022,0.4669,3992.0,3991.9,9.14228243]
[1759065117225,0.4669,3992.0,3991.9,4.10232197]
[1759065117425,0.6858,3992.0,3991.9,4.36632197]
[1759065117823,0.4669,3992.0,3991.9,9.36632197]
[1759065118526,0.6858,3992.0,3991.9,9.36632197]
[1759065118725,0.6858,3992.0,3991.9,8.47474936]
[1759065119027,0.4669,3992.0,3991.9,8.47474936]
[1759065119229,0.4669,3992.0,3991.9,9.36632197]
[1759065119526,6.85883312,3992.0,3991.9,3.85901862]
[1759065120430,6.85883312,3992.0,3991.9,3.47474936]
[1759065121325,0.9064,3992.0,3991.9,4.36632197]
[1759065121525,0.6858,3992.0,3991.9,3.47474936]
[1759065121725,0.6858,3992.0,3991.9,4.80414963]
[1759065121927,0.6858,3992.0,3991.9,3.47474936]
[1759065122525,0.9064,3992.0,3991.9,3.21074936]
[1759065122732,0.9064,3992.0,3991.9,3.47474936]
[1759065123027,0.9064,3992.0,3991.9,3.98927562]
[1759065123230,0.9064,3992.0,3991.9,4.25327562]
[1759065124429,0.1322,3992.0,3991.9,11.50519923]
[1759065124728,0.3274,3992.3,3992.2,0.45066]
[1759065124932,0.3274,3992.3,3992.2,1.49218626]
[1759065125431,0.1322,3992.5,3992.2,1.49218626]
[1759065125432,0.1322,3992.5,3992.4,0.45064]
[1759065125628,0.1322,3992.5,3992.4,4.69996626]
[1759065126434,0.1322,3992.5,3992.4,6.47238931]
[1759065127328,0.4596,3992.5,3992.4,4.69996626]
[1759065130035,0.6785,3992.5,3992.4,4.69996626]
[1759065130232,0.02506348,3992.9,3992.8,0.45059]
[1759065130429,0.57136348,3992.9,3992.8,4.69991626]
[1759065130732,0.57136348,3992.9,3992.8,4.43691626]
[1759065130733,0.79196348,3992.9,3992.8,4.43691626]
[1759065130936,0.79196348,3992.9,3992.8,6.03223714]
[1759065131230,0.79196348,3992.9,3992.8,4.69991626]
[1759065132129,0.79196348,3992.9,3992.8,4.43691626]
[1759065132327,7.1949766,3992.9,3992.8,3.98632626]
[1759065132529,12.1949766,3992.9,3992.8,1.04152626]
[1759065133233,12.1949766,3992.9,3992.8,1.93154645]
[1759065133630,12.1949766,3992.9,3992.8,1.66854645]
[1759065133831,12.1949766,3992.9,3992.8,1.93154645]
[1759065134236,0.3122,3992.4,3992.1,1.25635014]
[1759065134537,1.17474,3992.4,3992.3,0.263]
[1759065137331,0.45068,3992.0,3991.9,0.00294936]
[1759065137632,1.30348,3992.0,3991.9,0.00294936]
[1759065138140,6.30348,3992.0,3991.9,0.00294936]
[1759065138528,1.30354,3991.5,3991.4,3.2078]
[1759065138734,0.99139,3991.0,3990.9,8.61043319]
[1759065139033,1.30359,3991.0,3990.9,3.2078]
[1759065139238,1.30359,3991.0,3990.4,5.68554201]
[1759065139239,1.30365,3990.5,3990.4,5.68554201]
[1759065139536,1.30365,3990.5,3990.4,3.43639224]
[1759065139838,1.30365,3990.5,3990.4,3.21019224]
[1759065140031,1.30365,3990.5,3990.4,0.26539224]
[1759065141731,1.30365,3990.5,3990.4,0.26439224]
[1759065141932,1.30365,3990.5,3990.4,0.00239224]
[1759065143639,6.30365,3990.5,3990.3,0.67198372]
[1759065143944,1.19327,3990.3,3990.2,0.67198372]
[1759065144334,1.19327,3990.3,3990.2,0.2276]
[1759065144537,1.19327,3990.3,3990.2,1.11628372]
[1759065144741,1.19327,3990.3,3990.2,1.45470927]
[1759065144945,1.19327,3990.3,3990.2,0.67420927]
[1759065145437,1.19327,3990.3,3990.2,0.00222555]
[1759065146738,9.40107,3990.3,3990.2,0.00222555]
[1759065151642,4.40107,3990.3,3990.2,0.00222555]
[1759065152348,4.66307,3990.3,3990.2,0.00222555]
[1759065158046,0.2089,3989.1,3989.0,3.87766354]
[1759065158246,1.19341,3989.1,3989.0,3.2078]
[1759065158449,1.12745,3989.4,3988.6,4.32196354]
[1759065158450,0.87745,3988.7,3988.6,4.32196354]
[1759065158649,0.87745,3988.7,3988.6,3.6521]
[1759065158650,1.19345,3988.7,3988.6,3.6521]
[1759065158851,1.19345,3988.7,3988.6,3.9883]
[1759065159149,0.00212084,3988.7,3988.6,9.44122505]
[1759065159353,0.00212084,3988.7,3988.6,10.11108859]
[1759065159652,0.00212084,3988.7,3988.6,5.11108859]
[1759065159849,0.00212084,3988.7,3988.6,4.44122505]
[1759065160048,0.00212084,3988.7,3988.6,9.44122505]
[1759065160445,0.00212084,3988.7,3988.6,4.44122505]
[1759065161051,0.00212084,3988.7,3988.6,4.70222505]
[1759065161651,0.00212084,3988.7,3988.6,4.44122505]
[1759065161955,0.00212084,3988.7,3988.6,4.70222505]
[1759065163360,0.52702084,3988.7,3988.6,4.70222505]
[1759065163548,0.31812084,3988.7,3988.6,4.70222505]
[1759065163852,0.00212084,3988.7,3988.6,4.70222505]
[1759065164239,0.00212084,3988.7,3988.6,6.04108065]
[1759065164650,0.00212084,3988.7,3988.6,11.04108065]
[1759065165355,0.00212084,3988.7,3988.6,9.70222505]
[1759065167348,0.00212084,3988.7,3988.6,11.49418873]
[1759065168357,0.00212084,3988.7,3988.6,9.70222505]
[1759065169851,0.00212084,3988.7,3988.6,9.44122505]
[1759065170050,0.00212084,3988.7,3988.6,9.70222505]
[1759065171646,1.19558084,3988.7,3988.6,8.99015505]
[1759065171846,1.19558084,3988.7,3988.6,3.46965505]
[1759065172158,6.19558084,3988.7,3988.6,0.26285505]
[1759065172359,6.19558084,3988.7,3988.6,1.16297716]
[1759065172950,6.19558084,3988.7,3988.6,0.26285505]
[1759065173451,1.19558084,3988.7,3988.6,0.26285505]
[1759065173655,1.19558084,3988.7,3988.6,1.16297716]
[1759065174061,1.19558084,3988.7,3988.6,1.16197716]
[1759065178054,1.19558084,3988.7,3988.6,0.26185505]
[1759065181861,1.19558084,3988.7,3988.6,0.48295505]
[1759065185268,1.19558084,3988.7,3988.6,0.26185505]
[1759065186257,1.19558084,3988.7,3988.6,0.00185505]
[1759065186465,1.19558084,3988.7,3988.6,0.67694945]
[1759065187160,1.19558084,3988.7,3988.6,0.00185505]
[1759065187360,1.19558084,3988.7,3988.6,0.67694945]
[1759065190069,1.19558084,3988.7,3988.6,0.00185505]
[1759065194667,1.19558084,3988.7,3988.6,0.23005505]
[1759065197774,1.19558084,3988.7,3988.6,0.00185505]
[1759065200277,1.19558084,3988.7,3988.6,0.67694945]
[1759065201276,1.19558084,3988.7,3988.6,0.00185505]
[1759065201482,1.19558084,3988.7,3988.6,0.6781852]
[1759065204482,6.19558084,3988.7,3988.6,0.6781852]
[1759065204883,1.19558084,3988.7,3988.6,0.6781852]
[1759065205478,1.19558084,3988.7,3988.6,0.00185505]
[1759065215283,1.19558084,3988.7,3988.0,0.90012211]
[1759065215284,1.19033,3988.1,3988.0,0.90012211]
[1759065215490,0.99974,3988.0,3987.9,0.90012211]
[1759065215799,1.32114,3988.0,3987.9,0.90012211]
[1759065216191,1.19035,3987.9,3987.8,0.90012211]
[1759065216496,1.19035,3987.9,3987.8,0.90189862]
[1759065217089,1.19035,3987.9,3987.8,1.11209862]
[1759065217787,1.19035,3987.9,3987.8,0.90189862]
[1759065217993,1.19035,3987.9,3987.8,0.00177651]
[1759065220596,4.39815,3987.9,3987.8,0.00177651]
[1759065223200,4.39815,3987.9,3987.8,0.21197651]
[1759065225204,4.39815,3987.9,3987.8,0.00177651]
[1759065229503,4.39815,3987.9,3987.8,0.21197651]
[1759065230104,4.39815,3987.9,3987.8,0.00177651]
[1759065233524,4.65515,3987.9,3987.8,0.00177651]
[1759065237213,1.21243,3987.2,3987.1,1.12302211]
[1759065237829,1.21243,3987.2,3987.1,0.2229]
[1759065238322,1.21243,3987.2,3987.1,0.22590507]
[1759065238922,1.21243,3987.2,3987.1,0.67714507]
[1759065239627,1.21243,3987.2,3987.1,1.21294507]
[1759065239828,0.5529,3987.2,3987.1,6.21294507]
[1759065240228,1.00413,3987.2,3987.1,6.21294507]
[1759065240528,0.5529,3987.2,3987.1,6.21294507]
[1759065241423,0.1272,3987.5,3987.1,6.21294507]
[1759065241424,0.7897,3987.5,3987.4,0.89861]
[1759065241618,0.6801,3987.5,3987.4,1.20991]
[1759065241818,1.00409,3987.5,3987.4,1.20991]
[1759065243930,1.21239,3987.5,3987.4,1.20991]
[1759065245222,1.33959,3987.5,3987.4,1.20991]
[1759065246430,0.8884,3987.5,3987.4,1.20991]
[1759065247826,0.7612,3987.5,3987.4,1.20991]
[1759065248023,1.00409,3987.5,3987.4,1.20991]
[1759065250027,0.5529,3987.5,3987.4,1.20991]
[1759065250331,3.2078,3987.9,3987.8,1.20986]
[1759065250332,0.7612,3987.9,3987.8,1.20986]
[1759065250533,0.7612,3987.9,3987.8,1.46586]
[1759065251133,1.21235,3987.9,3987.8,1.46586]
[1759065251436,0.7612,3987.9,3987.8,1.46586]
[1759065252728,0.3416,3987.9,3987.8,1.46586]
[1759065253231,0.3416,3987.9,3987.8,2.36750957]
[1759065253631,0.78633,3988.1,3988.0,0.45114]
[1759065253829,0.3352,3988.1,3988.0,1.19724]
[1759065254630,0.5582,3988.1,3988.0,1.19724]
[1759065255330,0.3352,3988.1,3988.0,1.19724]
[1759065256731,0.80489,3988.5,3988.4,1.19719]
[1759065256930,0.80489,3988.5,3988.4,1.45319]
[1759065257429,0.5582,3988.5,3988.4,1.45319]
[1759065258732,0.45318084,3988.7,3988.6,0.66187]
[1759065258931,0.78838084,3988.7,3988.6,1.19717]
[1759065259138,1.01138084,3988.7,3988.6,1.19717]
[1759065261443,1.23938084,3988.7,3988.6,1.19717]
[1759065262732,1.23938084,3988.7,3988.6,0.86897]
[1759065264041,1.23938084,3988.7,3988.6,1.18197]
[1759065264838,1.23938084,3988.7,3988.6,0.86897]
[1759065265336,1.23938084,3988.7,3988.6,1.18197]
[1759065265542,0.78832084,3988.7,3988.6,1.18197]
[1759065265934,1.23938084,3988.7,3988.6,1.18197]
[1759065269437,1.23938084,3988.7,3988.6,0.86897]
[1759065271344,0.78832084,3988.7,3988.6,0.86897]
[1759065271545,1.23938084,3988.7,3988.6,0.86897]
[1759065272452,1.23938084,3988.7,3988.6,1.18197]
[1759065272648,0.78832084,3988.7,3988.6,1.18197]
[1759065273346,1.23938084,3988.7,3988.6,1.18197]
[1759065273643,1.23938084,3988.7,3988.6,0.86897]
[1759065277449,0.78832084,3988.7,3988.6,0.86897]
[1759065278545,1.23938084,3988.7,3988.6,0.86897]
[1759065279352,1.23938084,3988.7,3988.6,0.66187]
[1759065280446,0.78832084,3988.7,3988.6,0.66187]
[1759065280647,0.78832084,3988.7,3988.6,1.18957]
[1759065282349,3.2078,3989.2,3988.7,1.12765]
[1759065282551,3.4218,3989.2,3989.1,0.7404]
[1759065282750,3.6359,3989.2,3989.1,0.9954]
[1759065282948,0.4281,3989.2,3989.1,1.44641]
[1759065283148,0.766,3989.2,3989.1,1.44641]
[1759065283456,0.76833532,3989.2,3989.1,1.44641]
[1759065285348,0.55423532,3989.2,3989.1,1.44641]
[1759065285543,0.34023532,3989.2,3989.1,1.44641]
[1759065286147,0.00233532,3989.2,3989.1,1.44641]
[1759065286352,0.00233532,3989.2,3989.1,2.34746991]
[1759065286758,0.00233532,3989.2,3989.1,1.44641]
[1759065288054,0.55423532,3989.2,3989.1,1.44641]
[1759065288254,0.55423532,3989.2,3989.1,2.34726144]
[1759065292160,0.34023532,3989.2,3989.1,5.55506144]
[1759065293054,0.00233532,3989.2,3989.1,5.55506144]
[1759065293254,0.34023532,3989.2,3989.1,5.55506144]
[1759065294059,0.00233532,3989.2,3989.1,5.55506144]
[1759065294364,0.33373532,3989.2,3989.1,5.55506144]
[1759065297262,0.33373532,3989.2,3989.1,4.65421]
[1759065300563,0.55073532,3989.2,3989.1,4.39921]
[1759065300758,0.55073532,3989.2,3989.1,4.65421]
[1759065302767,1.21273532,3989.2,3989.1,3.2078]
[1759065302966,0.5552,3989.0,3988.9,0.45104]
[1759065303164,0.5552,3989.0,3988.9,0.92444]
[1759065303466,0.8866,3989.0,3988.9,1.48524]
[1759065303663,1.33763,3989.0,3988.9,1.48524]
[1759065304064,1.33763,3989.0,3988.9,1.14614]
[1759065304266,1.33763,3989.0,3988.9,0.2184]
[1759065304468,0.7594,3988.8,3988.4,1.23995144]
[1759065304668,1.33769,3988.5,3988.4,1.11925144]
[1759065304875,1.33769,3988.5,3988.4,0.255]
[1759065305866,1.21051,3988.3,3988.2,1.57037144]
[1759065306068,1.21051,3988.3,3988.2,1.82537144]
[1759065306572,1.21051,3988.3,3988.2,1.37425144]
[1759065307076,1.21051,3988.3,3988.2,0.4734]
[1759065308065,1.21051,3988.3,3988.2,0.2184]
[1759065308261,0.45115,3987.9,3987.8,1.35201144]
[1759065308472,0.7594,3987.9,3987.8,1.82541144]
[1759065308775,0.3314,3987.9,3987.8,2.38621144]
[1759065309165,1.21055,3987.9,3987.8,2.38621144]
[1759065309366,1.21055,3987.9,3987.8,1.48536]
[1759065309677,1.21055,3987.9,3987.8,1.0342]
[1759065310077,1.21055,3987.9,3987.8,1.48536]
[1759065311172,1.21055,3987.9,3987.8,1.14626]
[1759065311373,1.21055,3987.9,3987.8,1.47556]
[1759065311962,1.21055,3987.9,3987.8,1.0244]
[1759065312170,1.21055,3987.9,3987.8,0.6951]
[1759065312363,0.3314,3987.9,3987.6,0.2176]
[1759065312570,1.20708,3987.7,3987.6,0.2176]
[1759065312769,1.20708,3987.7,3987.6,0.255]
[1759065313575,1.20711,3987.4,3987.3,0.7529]
[1759065313875,1.20711,3987.4,3987.3,0.4236]
[1759065314070,1.20711,3987.4,3987.3,0.6786]
[1759065314272,1.20711,3987.4,3987.3,0.4726]
[1759065314778,1.20711,3987.4,3987.3,0.92382]
[1759065315075,1.20711,3987.4,3987.3,1.45912]
[1759065315276,1.20711,3987.4,3987.3,1.20412]
[1759065315472,1.20711,3987.4,3987.3,1.12982]
[1759065315667,1.20711,3987.4,3987.3,1.45912]
[1759065315872,0.7559,3987.4,3987.3,1.45912]
[1759065316270,1.20711,3987.4,3987.3,1.45912]
[1759065318577,1.20711,3987.4,3987.3,1.0079]
[1759065319166,1.20711,3987.4,3987.3,1.45912]
[1759065319672,1.20711,3987.4,3987.3,1.0079]
[1759065320875,1.20711,3987.4,3987.3,0.7529]
[1759065321181,1.20711,3987.4,3987.3,1.0079]
[1759065321379,1.20711,3987.4,3987.3,0.2176]
[1759065321579,4.41491,3987.4,3987.3,0.255]
[1759065323275,0.88943,3987.2,3987.1,0.22060507]
[1759065323576,1.20713,3987.2,3987.1,0.47560507]
[1759065324181,1.20713,3987.2,3987.1,0.25800507]
[1759065327478,1.20713,3987.2,3987.1,0.00300507]
[1759065327681,1.20713,3987.2,3987.1,0.25800507]
[1759065328083,1.20713,3987.2,3987.1,0.46410507]
[1759065328279,1.20713,3987.2,3987.1,1.02130507]
[1759065333989,0.98783,3987.2,3987.1,1.02130507]
[1759065334382,0.98783,3987.2,3987.1,1.47254507]
[1759065334989,1.19733,3987.2,3987.1,1.02130507]
[1759065335886,1.19733,3987.2,3987.1,0.68160507]
[1759065338092,1.19733,3987.2,3987.1,0.46410507]
[1759065339294,1.19733,3987.2,3987.1,1.36495651]
[1759065341198,1.19733,3987.2,3987.1,0.46410507]
[1759065343605,1.19733,3987.2,3987.1,0.91534507]
[1759065343806,1.19733,3987.2,3987.1,1.47254507]
[1759065344110,0.3177,3987.2,3987.1,2.82582421]
[1759065344408,0.5253,3987.2,3987.1,2.82582421]
[1759065346311,0.3177,3987.2,3987.1,2.82582421]
[1759065346509,0.5253,3987.2,3987.1,2.82582421]
[1759065347811,0.7348,3987.2,3987.1,2.82582421]
[1759065348012,1.18603,3987.2,3987.1,2.82582421]
[1759065355619,1.18603,3987.2,3987.1,2.37458421]
[1759065355917,1.18603,3987.2,3987.1,1.02130507]
[1759065356109,1.18603,3987.2,3987.1,1.47254507]
[1759065356618,1.18603,3987.2,3987.1,0.76630507]
[1759065356817,1.18603,3987.2,3987.1,0.20910507]
[1759065357021,1.18603,3987.2,3987.1,0.25800507]
[1759065358418,1.18603,3987.2,3987.1,0.47950507]
[1759065358725,1.18603,3987.2,3987.1,1.49094507]
[1759065360037,0.5253,3987.2,3987.1,2.84422421]
[1759065360322,0.98213,3987.2,3987.1,2.84422421]